[Event "Germany Countries-chT Youth 2022"]
[Site "Wiesbaden"]
[Date "2022.10.01"]
[Round "1"]
[White "Huber, Benedikt"]
[Black "Kempe, Caius Emilian"]
[Result "1-0"]
[ECO "C02"]
[WhiteElo "2299"]
[BlackElo "2030"]
[Annotator "TA"]
[PlyCount "53"]
[EventDate "2022.09.28"]
[EventType "team-tourn"]
[EventRounds "7"]
[EventCountry "GER"]
[SourceTitle "playchess.com"]
[Source "ChessBase"]
[SourceQuality "1"]
[TimeControl "40/5400+30:1800+30"]

{[%evp 15,53,81,89,82,82,75,76,74,78,68,79,66,83,95,159,177,233,258,213,121,166,130,325,317,287,264,263,256,341,312,881,871,1664,1641,29981,29982,29992,29985,29999,820]} 1. e4 e6 2. d4 d5 3. e5 c5 4. c3 Nc6 5. Nf3 Bd7 6. Be2 Qb6 7. O-O f6 8. dxc5 Bxc5 9. b4 {C02: French: Advance Variation.} Be7 10. Be3 Qc7 {[#]} 11. c4 $1 {White is better.} fxe5 {White must now prevent ...d4.} 12. cxd5 {[#]} Nxb4 $146 ({Predecessor:} 12... exd5 13. Qxd5 Nf6 14. Qb3 Bxb4 15. Rc1 Be7 16. Ng5 Rf8 17. Nc3 h6 18. Nb5 {1-0 (18) Svrsek,R (1916)-Basson,H (1399) LSS email 2013}) 13. dxe6 Bxe6 14. Qa4+ Nc6 {[#]} ({Black should try} 14... Bd7 15. Qb3 Nc2) 15. Nc3 $1 $16 {[%mdl 1024] White has strong compensation. White is more active.} Nf6 (15... a6 $142 16. Rad1 Qa5) 16. Ng5 $18 Bg8 17. Bf3 (17. Nb5 $18 Qb8 18. Rfd1) 17... h6 18. Nge4 {And now Nb5 would win.} Bf7 $2 {This costs Black the game.} (18... Kf8 $16 19. Rfd1 Rd8 20. Rxd8+ (20. Bxa7 Ra8 $16) 20... Bxd8) 19. Nxf6+ Bxf6 20. Nd5 Bxd5 21. Bxd5 Kf8 22. Rac1 Rc8 $2 (22... Rd8) 23. f4 exf4 24. Bc5+ {A strong pair of Bishops.} Ke8 25. Rfe1+ {White mates.} Kd8 26. Rcd1 Kd7 27. Be6+ {Weighted Error Value: White=0.13 (very precise) /Black=0.66} (27. Bxc6# $142) 1-0

[Event "Germany Countries-chT Youth 2022"]
[Site "Wiesbaden"]
[Date "2022.10.01"]
[Round "1"]
[White "Pubantz, Jan"]
[Black "Muller, Magnus"]
[Result "1/2-1/2"]
[ECO "E94"]
[WhiteElo "2273"]
[BlackElo "1464"]
[Annotator "TA"]
[PlyCount "88"]
[EventDate "2022.09.28"]
[EventType "team-tourn"]
[EventRounds "7"]
[EventCountry "GER"]
[SourceTitle "playchess.com"]
[Source "ChessBase"]
[SourceQuality "1"]
[TimeControl "40/5400+30:1800+30"]

{[%evp 18,88,18,0,2,1,22,0,0,0,0,0,0,0,0,10,0,13,5,-17,29,7,33,0,0,0,0,0,0,-36,-11,-42,-14,-118,-22,-235,-105,-95,-26,-29,-47,-70,0,-15,-10,-54,-10,-19,-8,-18,-5,-31,-33,-12,0,0,0,0,0,0,0,0,0,0,0,0,0,0,0,0,0,0,0]} 1. d4 {[%emt 0:00:04]} Nf6 {[%emt 0:00:21]} 2. c4 {[%emt 0:00:05]} g6 {[%emt 0:00:24]} 3. Nc3 {[%emt 0:00:16]} Bg7 {[%emt 0:00:07]} 4. e4 {[%emt 0:00:10]} d6 {[%emt 0:00:14]} 5. Nf3 {[%emt 0:00:15]} O-O {[%emt 0:00:08]} 6. Be2 {[%emt 0:00:11]} e5 {[%emt 0:00:28]} 7. Be3 {[%emt 0:00:59]} exd4 {[%emt 0:00:42]} 8. Nxd4 {[%emt 0:00:51]} Re8 9. Qc2 {[%emt 0:01:38]} c6 {[%emt 0:00:28]} 10. O-O {[%emt 0:03:35]} Qe7 {[%emt 0:00:32][%cal Rf6e4] E94: King's Indian: Classical: 6 Be2 e5 7 0-0: Various Black 7th moves.} 11. Bf3 {[%emt 0:13:33]} Nbd7 {[%emt 0:00:41]} 12. h3 {[%emt 0:06:03]} Ne5 {[%emt 0:12:29] ...c5 is the strong threat.} 13. Be2 {[%emt 0:02:19]} Ned7 {[%emt 0:02:05][%cal Rf6e4]} 14. Bf3 {[%emt 0:04:18]} Ne5 {[%emt 0:05:03]} 15. Be2 {[%emt 0:00:02]} Ned7 {[%emt 0:00:30][%cal Rf6e4]} 16. Bd3 {[%emt 0:00:30] [#]} Ne5 $146 {[%emt 0:00:10]} ({Predecessor:} 16... Nc5 17. f3 Nh5 18. Rae1 Ng3 19. Rf2 f5 20. Nde2 fxe4 21. fxe4 Ngxe4 22. Bxc5 Nxc5 23. Bxg6 hxg6 24. Qxg6 Qe6 25. Qg3 Qe3 26. Qg6 Be6 27. Nd1 Qe4 28. Qg5 Nd3 29. Rf3 Nxe1 30. Rg3 Qe5 31. Qg6 Bf7 {0-1 (27) Ozgen,T (1614)-Percin,O (1944) Manavgat 2016}) 17. Rae1 {[%emt 0:00:30]} c5 {[%emt 0:00:50]} 18. Nde2 {[%emt 0:00:30]} Bd7 {[%emt 0:33:42]} (18... Nxd3 $142 19. Qxd3 Nxe4) 19. Nf4 {[%emt 0:26:41]} Bc6 {[%emt 0:00:25]} (19... Nxd3 {seems wilder.} 20. Qxd3 Nxe4 21. Nfd5 Qh4) 20. Nfd5 {[%emt 0:02:49]} Nxd5 {[%emt 0:01:07]} 21. exd5 {[%emt 0:02:24]} Bd7 {[%emt 0:01:33]} 22. Be2 {[%emt 0:03:04]} f5 {[%emt 0:10:52]} 23. Qd2 {[%emt 0:01:26]} Qh4 {[%emt 0:03:16]} 24. Qc1 {[%emt 0:06:23]} Nf7 {[%emt 0:01:00] Inhibits Bg5.} (24... Nxc4 $2 25. g3 Qxh3 26. Bxc4 $18) 25. Kh2 {[%emt 0:09:49] [#]} (25. Bd3 $11 {remains equal.}) 25... Bd4 {[%emt 0:11:52]} (25... Rxe3 $1 $17 {[%mdl 512]} 26. Qxe3 f4) 26. Qd2 $2 {[%emt 0:05:24] [#]} (26. g3 $11 {and White stays safe.} Qf6 27. Bd3) 26... Bxe3 {[%emt 0:05:17]} (26... Rxe3 $1 $19 {[%mdl 512]} 27. fxe3 Be5+ 28. Rf4 g5) 27. fxe3 $17 {[%emt 0:00:05][%cal Oe3e4]} Re5 {[%emt 0:00:24] Inhibits e4.} (27... Qh6 $17 28. Bd3 Re7) 28. Bd3 {[%emt 0:01:39]} Rae8 {[%emt 0:00:49]} 29. Re2 {[%emt 0:01:40][%cal Oe3e4]} Qe7 {[%emt 0:05:02]} (29... Qg5 $15 30. Rfe1 R5e7) 30. e4 $1 $11 {[%emt 0:03:24]} fxe4 {[%emt 0:02:05]} 31. Rxe4 {[%emt 0:01:02]} Rxe4 {[%emt 0:00:28]} (31... Bf5 $5 {[%cal Rf5e4]} 32. Ref4 Bxd3 33. Rxf7 (33. Qxd3 Re3 $11) 33... Bxf1 34. Rxe7 R8xe7 $11) 32. Bxe4 {[%emt 0:01:39]} Ne5 {[%emt 0:00:21]} 33. b3 {[%emt 0:00:06]} (33. Qf4 {looks sharper.} a6 34. Bc2 b5 35. cxb5 axb5 36. a3) 33... Rf8 {[%emt 0:00:21]} 34. Qe1 {[%emt 0:01:15]} Rxf1 {[%emt 0:00:59]} 35. Qxf1 {[%emt 0:00:05]} Ng4+ {[%emt 0:00:32] The position is equal.} 36. hxg4 {[%emt 0:01:18] Strongly threatening g3.} Qe5+ {[%emt 0:00:23]} 37. g3 {[%emt 0:00:52]} Qxc3 {[%emt 0:00:00][%mdl 4096] Endgame KQB-KQB} 38. Qf4 $1 {[%emt 0:00:10] Against Qd2+} Qd4 {[%emt 0:02:22]} 39. Qxd6 {[%emt 0:01:48]} Qd2+ {[%emt 0:01:18]} 40. Bg2 {[%emt 0:00:59] Hoping for g5.} Qh6+ {[%emt 0:00:22]} 41. Kg1 {[%emt 0:01:43] Threatens to win with g5.} Qe3+ {[%emt 0:02:52]} 42. Kh2 {[%emt 0:12:23] Black must now prevent g5.} Qh6+ {[%emt 0:00:06]} 43. Kg1 {[%emt 0:00:37] aiming for g5.} Qe3+ {[%emt 0:00:06]} 44. Kh2 {[%emt 0:01:43] And now g5 would win.} Qh6+ {[%emt 0:00:05] Weighted Error Value: White=0.25 (precise) /Black=0.18 (very precise)} 1/2-1/2

[Event "Germany Countries-chT Youth 2022"]
[Site "Wiesbaden"]
[Date "2022.10.01"]
[Round "1"]
[White "Laux, Dominik"]
[Black "Jaskulski, Jan"]
[Result "1-0"]
[ECO "B65"]
[WhiteElo "2248"]
[BlackElo "1849"]
[Annotator "TA"]
[PlyCount "101"]
[EventDate "2022.09.28"]
[EventType "team-tourn"]
[EventRounds "7"]
[EventCountry "GER"]
[SourceTitle "playchess.com"]
[Source "ChessBase"]
[SourceQuality "1"]
[TimeControl "40/5400+30:1800+30"]

{[%evp 22,101,47,36,54,0,0,-14,0,-284,-285,-301,-295,-285,-153,-188,-191,-181,-167,-164,-75,-70,-6,-6,0,0,20,18,20,20,18,15,23,0,0,0,10,10,10,10,204,175,184,104,139,104,176,91,368,310,341,396,423,413,375,297,1501,1287,1537,1497,2468,2213,29977,29978,29978,29979,29981,29982,29983,29984,29984,29985,29986,29986,29987,29988,29991,29992,29994,29995,29995,29996]} 1. e4 {[%emt 0:00:23]} c5 {[%emt 0:00:05]} 2. Nf3 {[%emt 0:00:11]} d6 {[%emt 0:00:05]} 3. d4 {[%emt 0:00:07]} cxd4 {[%emt 0:00:07]} 4. Nxd4 {[%emt 0:00:09]} Nf6 {[%emt 0:00:17]} 5. Nc3 {[%emt 0:00:06]} Nc6 {[%emt 0:00:03]} 6. Bg5 {[%emt 0:01:07]} e6 {[%emt 0:00:13]} 7. Qd2 {[%emt 0:00:46]} Be7 {[%emt 0:01:26]} 8. O-O-O {[%emt 0:00:40]} O-O {[%emt 0:00:08]} 9. f4 {[%emt 0:00:47]} h6 {[%emt 0:07:37]} 10. h4 {[%emt 0:00:30]} Nxd4 {[%emt 0:04:13]} 11. Qxd4 {[%emt 0:00:02]} Qa5 {[%emt 0:00:06]} 12. Kb1 {[%emt 0:12:19][%cal Od4e3]} e5 {[%emt 0:04:30] B65: Sicilian: Richter-Rauzer: 7...Be7 8 0-0-0 0-0 9 f4 Nxd4.} 13. Qg1 {[%emt 0:05:48]} (13. Qf2 $14) 13... exf4 $11 {[%emt 0:06:25]} ({Don't take} 13... hxg5 14. hxg5 Ng4 15. Nd5 $16) 14. Bxf4 {[%emt 0:04:54]} Be6 {[%emt 0:00:53] [#] Prevents Bc4. Strongly threatening ...Rac8. The position is equal.} 15. Bd2 $146 {[%emt 0:21:36][%mdl 8192] [#]} ({Don't blunder} 15. Bxd6 $2 Bxd6 16. Rxd6 Nxe4 $1 {[%mdl 512]} 17. Rxe6 fxe6 $19) (15. Bd3 $11) ({Predecessor:} 15. Bd3 d5 16. exd5 {½-½ (16) Kutuzovic,B (2396)-Vukelic,T (2249) Rabac 2003}) 15... Nxe4 $1 $19 {[%emt 0:05:45][%mdl 512]} 16. a3 {[%emt 0:02:37]} Nxd2+ {[%emt 0:00:10]} 17. Rxd2 {[%emt 0:00:01]} b5 {[%emt 0:05:51]} (17... Bf6 $19 18. Qe3 Rfe8) 18. Qd4 {[%emt 0:07:28]} (18. Bxb5 $2 Bf6 19. Qe3 Rab8 20. Rxd6 Bxc3 21. Qxc3 Qxc3 22. bxc3 Rxb5+ $19) 18... Bf6 {[%emt 0:18:00] This bishop pair is nice.} 19. Qb4 {[%emt 0:00:33]} Qxb4 {[%emt 0:00:21]} 20. axb4 {[%emt 0:00:01] [#]} Bxc3 {[%emt 0:00:11]} (20... a5 $1 $19 {[%cal Ra5b4]} 21. Nd5 Be5) 21. bxc3 $17 {[%emt 0:00:18]} a6 {[%emt 0:00:11]} (21... Rfc8 $15 22. Rxd6 a5) 22. Rxd6 $11 {[%emt 0:01:40]} Rfc8 {[%emt 0:00:07]} 23. Bd3 {[%emt 0:03:50]} Rxc3 {[%emt 0:04:53]} 24. Kb2 {[%emt 0:00:45] Prevents Ra3.} Rc7 {[%emt 0:20:35]} 25. Ra1 {[%emt 0:00:20][%mdl 1024] White has compensation.} Rca7 {[%emt 0:00:11]} 26. Be4 {[%emt 0:02:08]} Re8 {[%emt 0:00:10]} 27. Bd3 {[%emt 0:04:16]} Rea8 {[%emt 0:00:45]} 28. Be4 {[%emt 0:10:00]} Re8 {[%emt 0:00:10]} 29. Rdxa6 {[%emt 0:03:00]} Rxa6 {[%emt 0:00:08]} 30. Rxa6 {[%emt 0:00:02][%mdl 4096] Endgame KRB-KRB} Bc8 $2 {[%emt 0:08:12]} (30... Bc4 $11 {and Black is okay.} 31. Bf3 Kf8) 31. Ra8 $18 {[%emt 0:00:11]} Rxe4 {[%emt 0:00:07]} 32. Rxc8+ {[%emt 0:00:05] KR-KR} Kh7 {[%emt 0:00:06]} 33. Kb3 {[%emt 0:00:14]} Rxh4 {[%emt 0:00:08]} (33... Rg4 $16) 34. Rc5 {[%emt 0:00:10]} g5 $2 {[%emt 0:00:58][%mdl 8192]} (34... Rh2 $16) 35. Rxb5 {[%emt 0:00:38]} Rg4 {[%emt 0:01:37]} 36. Rf5 {[%emt 0:01:48]} Rxg2 {[%emt 0:01:59]} 37. Rxf7+ {[%emt 0:00:44]} Kg6 {[%emt 0:02:19] [#]} 38. Rf1 {[%emt 0:00:07] Black must now prevent b5.} g4 $2 {[%emt 0:04:36]} (38... Rg3+ 39. Kc4 Ra3) 39. b5 {[%emt 0:00:37]} Re2 {[%emt 0:03:39]} 40. c4 {[%emt 0:02:38]} h5 {[%emt 0:02:09]} 41. b6 {[%emt 0:30:53] Intending b7 and mate.} Re8 {[%emt 0:30:18]} 42. c5 {[%emt 0:01:20] White mates.} Rb8 {[%emt 0:01:08]} 43. Kc4 {[%emt 0:00:51]} g3 {[%emt 0:00:14]} 44. Kb5 {[%emt 0:00:55]} h4 {[%emt 0:00:12]} 45. c6 {[%emt 0:00:34]} g2 {[%emt 0:00:32]} 46. Rg1 {[%emt 0:00:43]} h3 {[%emt 0:00:43]} 47. c7 {[%emt 0:00:06]} Rf8 {[%emt 0:00:36]} 48. b7 {[%emt 0:00:10]} Rf1 {[%emt 0:00:50]} 49. c8=Q {[%emt 0:00:10]} Rxg1 {[%emt 0:00:28]} 50. Qc2+ {[%emt 0:00:09]} Kh6 {[%emt 0:00:17]} 51. b8=Q {[%emt 0:00:13] Weighted Error Value: White=0.19 (very precise) /Black=0.45} 1-0

[Event "Germany Countries-chT Youth 2022"]
[Site "Wiesbaden"]
[Date "2022.10.01"]
[Round "1"]
[White "Bornholdt, Joa Max"]
[Black "Holinka, Henning"]
[Result "1/2-1/2"]
[ECO "D31"]
[WhiteElo "2196"]
[BlackElo "2245"]
[Annotator "TA"]
[PlyCount "95"]
[EventDate "2022.09.28"]
[EventType "team-tourn"]
[EventRounds "7"]
[EventCountry "GER"]
[SourceTitle "playchess.com"]
[Source "ChessBase"]
[SourceQuality "1"]
[TimeControl "40/5400+30:1800+30"]

{[%evp 9,95,22,23,20,27,35,26,25,35,10,18,0,6,0,7,2,12,8,12,0,4,10,23,18,33,33,34,41,41,29,43,30,52,57,90,90,143,135,127,141,139,141,141,141,141,144,219,71,59,66,109,69,73,0,74,74,74,74,395,375,395,385,356,299,541,478,567,45,28,18,424,338,397,343,715,666,895,654,582,163,163,163,29988,163,163,163,163,163]} 1. d4 {[%emt 0:00:25]} d5 {[%emt 0:00:07]} 2. c4 {[%emt 0:00:36]} e6 {[%emt 0:00:08]} 3. Nc3 {[%emt 0:00:37]} a6 {[%emt 0:01:10]} 4. cxd5 {[%emt 0:00:24]} exd5 {[%emt 0:00:08]} 5. Nf3 {[%emt 0:00:31]} c6 {[%emt 0:03:42]} 6. Qc2 {[%emt 0:00:52] D31: Queen's Gambit Declined: Semi-Slav without ...Nf6 (+ Marshall Gambit and Noteboom) and Exchange Variation lines without ...Nf6.} Nf6 {[%emt 0:02:35]} 7. Bg5 {[%emt 0:02:45]} Be6 {[%emt 0:01:15]} 8. e3 {[%emt 0:01:16] White has an edge.} h6 {[%emt 0:00:56]} 9. Bh4 {[%emt 0:01:14]} Bd6 {[%emt 0:03:21]} 10. Bd3 {[%emt 0:05:06]} (10. Ne5 {keeps more tension.} c5 11. Bd3 O-O 12. O-O) 10... Nbd7 {[%emt 0:03:50] Against Ne5} 11. O-O {[%emt 0:02:26]} Qc7 {[%emt 0:01:14]} 12. Bg3 {[%emt 0:11:30]} Bxg3 {[%emt 0:06:43]} 13. hxg3 {[%emt 0:01:13]} O-O {[%emt 0:01:45]} 14. Rfc1 {[%emt 0:04:49]} Rfe8 {[%emt 0:17:31]} 15. b4 {[%emt 0:07:07]} Qd6 {[%emt 0:06:29]} 16. Na4 {[%emt 0:17:42] [#]} Re7 $146 {[%emt 0:16:11]} ({Don't take} 16... Qxb4 17. Rcb1 Qa3 18. Rxb7 $16) ({Predecessor:} 16... Rac8 17. Nc5 Rc7 18. Qb2 Bg4 19. a4 Bxf3 20. gxf3 Nxc5 21. bxc5 Qd7 22. Kg2 g6 {½-½ (124) Budisavljevic,L (2509)-Dragnev,V (2569) Biel 2021}) 17. Nc5 {[%emt 0:02:33]} Nb6 {[%emt 0:08:01]} 18. a4 {[%emt 0:07:09]} Rc7 {[%emt 0:07:38]} 19. Rab1 {[%emt 0:04:31][%cal Ba1b1,Bb1b3,Bb3c3][%mdl 32]} Qe7 {[%emt 0:03:27]} 20. Rb3 {[%emt 0:09:55]} Ne8 {[%emt 0:05:05]} 21. Rc3 {[%emt 0:03:00]} Nd6 {[%emt 0:02:01] [#]} 22. Ne5 $1 {[%emt 0:00:42]} a5 {[%emt 0:04:46]} (22... Qf6 $142) 23. Nxe6 $16 {[%emt 0:02:46] White has more active pieces.} Qxe6 {[%emt 0:00:26] [#]} 24. b5 {[%emt 0:00:05][%cal Rb5c6]} c5 {[%emt 0:02:06]} 25. Rxc5 {[%emt 0:10:05]} Rxc5 {[%emt 0:00:07]} 26. dxc5 {[%emt 0:00:14]} Qxe5 {[%emt 0:00:15]} 27. cxb6 {[%emt 0:00:02]} g6 {[%emt 0:01:44]} (27... Qe6 $16 28. Qb2 Nc8) 28. Qc3 {[%emt 0:02:33]} (28. Qd2 $18 {is more deadly.}) 28... Qxc3 {[%emt 0:01:15]} 29. Rxc3 {[%emt 0:00:01][%mdl 4096] Endgame KRB-KRN} Nc8 {[%emt 0:00:20]} 30. Bc2 {[%emt 0:02:04]} Nxb6 {[%emt 0:00:11]} 31. Bb3 {[%emt 0:00:01]} ({White should play} 31. Rc7 $16) 31... Rc8 {[%emt 0:00:59]} (31... Rd8 $1 $11) 32. Rxc8+ {[%emt 0:00:13]} Nxc8 {[%emt 0:00:02]} 33. Bxd5 {[%emt 0:00:13] KB-KN} b6 $2 {[%emt 0:00:22][%mdl 8192]} (33... Nb6 $16 {is tougher.} 34. Bxb7 Kf8) 34. Kf1 {[%emt 0:01:14]} Kf8 {[%emt 0:00:15]} 35. Ke2 {[%emt 0:00:08]} Ke7 {[%emt 0:00:44]} 36. Kd3 {[%emt 0:01:02]} f6 $2 {[%emt 0:00:57]} (36... Nd6 {is a better defense.} 37. e4 Ne8) 37. Kd4 $18 {[%emt 0:00:36]} Kd6 {[%emt 0:00:14]} 38. f4 $2 {[%emt 0:00:46]} ({White should try} 38. Bb3 $18 Ne7 39. e4) 38... Ne7 $14 {[%emt 0:00:08]} 39. Be4 {[%emt 0:00:41] Black must now prevent g4.} g5 $2 {[%emt 0:01:20][%mdl 8192]} (39... h5 $1 $11 {and Black has nothing to worry.}) 40. Bb1 {[%emt 0:00:37]} Nd5 {[%emt 0:00:31]} 41. Ba2 {[%emt 0:30:27]} Ne7 {[%emt 0:07:22]} (41... Nb4) 42. e4 $18 {[%emt 0:00:00][%cal Be3e4,Be4e5][%mdl 32]} f5 {[%emt 0:13:27]} 43. e5+ {[%emt 0:00:00]} Kd7 {[%emt 0:00:26]} 44. Bb1 $2 {[%emt 0:00:00]} (44. fxg5 hxg5 45. Bf7) 44... g4 {[%emt 0:04:48]} 45. Bc2 {[%emt 0:00:00]} Ng6 $2 {[%emt 0:03:27]} (45... Kc7 $18 46. Bd3 Kd7) 46. Bb3 $2 {[%emt 0:00:00]} (46. Bxf5+ {mates} Ke7 47. Bxg6 Kd7 48. f5 h5 49. Bxh5 Ke7 50. Kd5 Kd8 51. f6) 46... Ne7 {[%emt 0:00:16]} 47. Bd5 {[%emt 0:00:00]} Nc8 {[%emt 0:01:17]} 48. Bc6+ {[%emt 0:01:21] Weighted Error Value: White=0.51/Black=0.63} 1/2-1/2

[Event "Germany Countries-chT Youth 2022"]
[Site "Wiesbaden"]
[Date "2022.10.01"]
[Round "1"]
[White "Wong, Gengchun"]
[Black "Lutsko, Artem"]
[Result "1/2-1/2"]
[ECO "B99"]
[WhiteElo "2195"]
[BlackElo "2431"]
[Annotator "TA"]
[PlyCount "63"]
[EventDate "2022.09.28"]
[EventType "team-tourn"]
[EventRounds "7"]
[EventCountry "GER"]
[SourceTitle "playchess.com"]
[Source "ChessBase"]
[SourceQuality "1"]
[TimeControl "40/5400+30:1800+30"]

{[%evp 22,63,56,27,65,45,49,36,51,37,37,36,6,0,0,-5,0,-41,0,-46,-41,-61,0,0,0,0,28,32,23,36,75,74,80,75,39,28,20,0,0,0,37,0,0,0]} 1. e4 c5 2. Nf3 d6 3. d4 cxd4 4. Nxd4 Nf6 5. Nc3 a6 6. Bg5 e6 7. f4 Be7 8. Qf3 Qc7 9. O-O-O Nbd7 10. g4 {[%cal Bg2g4,Bg4g5][%mdl 32]} h6 11. Bxf6 Bxf6 12. h4 $1 Nb6 $1 {[%mdl 4] outshines the older 12...Qb6. B99: Sicilian Najdorf: 6 Bg5 e6 7 f4 Be7 8 Qf3 Qc7 9 0-0-0 Nbd7.} 13. g5 Bxd4 14. Rxd4 Qc5 {White is slightly better.} 15. Rd1 Bd7 16. Kb1 O-O-O {[#]} 17. Bh3 $146 ({Predecessor:} 17. Bd3 Bc6 18. Qg4 hxg5 19. hxg5 g6 20. Rxh8 Rxh8 21. f5 Qe5 22. Ne2 Kb8 23. fxg6 fxg6 {0-1 (36) Paravyan,D (2617)-Leiva Rodriguez,J (2405) Chess.com INT 2022}) 17... hxg5 18. hxg5 Kb8 (18... Nc4 {feels hotter.} 19. b3 Na3+ 20. Kb2 b5) 19. Qg3 Bc6 20. g6 (20. Rhe1 $11) 20... f5 $1 $15 21. Rhe1 Na4 (21... d5 $1 $15 22. exf5 exf5) 22. Nxa4 $11 Bxa4 23. b3 Bc6 (23... Rc8 $5 {[%cal Rc5c2]} 24. c4 Bc6 $14) 24. exf5 exf5 25. Bg2 {Prevents Be4.} Bxg2 26. Qxg2 {Threatens to win with Re7.} Rde8 {Inhibits Re7.} 27. Qd2 {White is more active.} Kc7 28. Qd3 {[%cal Oa2a3] Prevents Re4.} Kd7 $1 29. Qf3 Qc6 30. Qd3 Qc5 31. Qf3 Qc6 32. Qd3 {Weighted Error Value: White=0.11 (very precise) /Black=0.11 (very precise)} 1/2-1/2

[Event "Germany Countries-chT Youth 2022"]
[Site "Wiesbaden"]
[Date "2022.10.01"]
[Round "1"]
[White "Hommer, Jeremy"]
[Black "Sommer, Justus"]
[Result "1-0"]
[ECO "C50"]
[WhiteElo "2184"]
[BlackElo "2122"]
[Annotator "TA"]
[PlyCount "89"]
[EventDate "2022.09.28"]
[EventType "team-tourn"]
[EventRounds "7"]
[EventCountry "GER"]
[SourceTitle "playchess.com"]
[Source "ChessBase"]
[SourceQuality "1"]
[TimeControl "40/5400+30:1800+30"]

{[%evp 10,89,20,16,27,12,28,21,24,-29,10,-19,0,-37,-37,-33,47,44,31,23,27,14,18,0,16,10,32,21,25,15,16,16,27,-19,46,38,50,25,60,67,100,118,112,104,118,107,115,89,81,84,87,44,192,191,169,182,211,169,206,199,206,203,209,208,201,195,664,568,1786,1963,1659,1845,1607,1497,1412,827,29964,29965,29958,29957,5193,1837]} 1. e4 {[%emt 0:00:05]} e5 {[%emt 0:00:13]} 2. Nf3 {[%emt 0:00:07]} Nc6 {[%emt 0:00:14]} 3. Bc4 {[%emt 0:00:09]} Bc5 {[%emt 0:00:47]} 4. d3 {[%emt 0:00:05]} Nf6 {[%emt 0:01:26]} 5. Nc3 {[%emt 0:00:04]} d6 {[%emt 0:02:10]} 6. Na4 {[%emt 0:00:12]} Bb6 {[%emt 0:00:42] C50: Hungarian Defence and Giuoco Pianissimo.} 7. a3 {[%emt 0:04:49]} Be6 {[%emt 0:03:25]} (7... O-O {with more complications.} 8. O-O h6 9. Re1 Re8) 8. Nxb6 {[%emt 0:04:30]} axb6 {[%emt 0:00:16] The position is equal.} 9. Qe2 {[%emt 0:04:01]} (9. Bxe6 $142 fxe6 10. O-O) 9... h6 {[%emt 0:05:17] [#]} 10. Bd2 $146 {[%emt 0:03:10]} ({Predecessor:} 10. h3 Qe7 11. O-O Bxc4 12. dxc4 Qe6 13. b3 g5 14. Nd2 Rg8 15. c3 g4 16. hxg4 Rxg4 {0-1 (30) Ivanovic,B (2515)-Kovacevic,V (2530) Novi Sad 1985}) 10... Qe7 {[%emt 0:08:03]} 11. h3 {[%emt 0:05:28]} Bxc4 {[%emt 0:06:03]} 12. dxc4 {[%emt 0:00:13]} Nd4 {[%emt 0:01:40]} (12... O-O $15) 13. Nxd4 $14 {[%emt 0:06:54]} exd4 {[%emt 0:00:09]} 14. O-O {[%emt 0:00:39]} O-O {[%emt 0:04:29]} (14... Qxe4 $2 15. Qxe4+ Nxe4 16. Rae1 $18) (14... Nxe4 $2 15. Rae1 $18) 15. Rfe1 {[%emt 0:00:35]} Nd7 {[%emt 0:04:45][%cal Bf6d7,Bd7c5,Bc5a4][%mdl 32]} 16. Qd3 {[%emt 0:10:41]} Qf6 {[%emt 0:02:41]} 17. c3 {[%emt 0:01:24]} dxc3 {[%emt 0:05:57]} (17... Nc5 $5 {[%cal Rc5d3]} 18. Qxd4 Qe6 $11) 18. Bxc3 {[%emt 0:00:17]} Qe6 {[%emt 0:01:07]} 19. Qd5 {[%emt 0:12:40]} Nc5 {[%emt 0:13:22]} 20. b4 {[%emt 0:06:26]} Na4 {[%emt 0:04:23]} 21. Bd4 {[%emt 0:00:27]} (21. Rac1 {deserves consideration.}) 21... c6 {[%emt 0:04:15]} ({Black should try} 21... c5 $11 22. Be3 Nb2) 22. Qxe6 {[%emt 0:00:27]} fxe6 {[%emt 0:00:04]} 23. Rad1 $40 {[%emt 0:00:11][%mdl 128] Black needs to defend precisely.} e5 {[%emt 0:02:53]} 24. Ba1 {[%emt 0:00:58]} Rf6 {[%emt 0:00:57]} 25. f4 {[%emt 0:04:28]} Rxf4 {[%emt 0:07:39]} 26. Rxd6 {[%emt 0:00:09]} Re8 {[%emt 0:00:28]} 27. Rd7 {[%emt 0:00:27]} Rf7 {[%emt 0:00:44]} 28. Rxf7 {[%emt 0:02:47]} Kxf7 $16 {[%emt 0:00:09][%mdl 4096] Endgame KRB-KRN} 29. Rf1+ $1 {[%emt 0:00:11]} Kg8 {[%emt 0:04:01]} 30. Rd1 {[%emt 0:00:13] Inhibits Rd8.} Re7 {[%emt 0:02:57] Inhibits Rd7. This costs Black the game.} ({Better is} 30... Kf7 $1 $14) 31. Kf2 $18 {[%emt 0:01:46]} Kf7 {[%emt 0:02:18]} 32. Rd8 {[%emt 0:00:24]} Kf6 {[%emt 0:01:58]} 33. Ke2 {[%emt 0:04:00]} Kg5 {[%emt 0:02:43]} 34. g3 {[%emt 0:00:33]} h5 {[%emt 0:00:39]} 35. Rf8 {[%emt 0:11:32]} g6 {[%emt 0:02:38]} 36. h4+ {[%emt 0:00:22]} Kg4 {[%emt 0:00:25] [#]} 37. Kf2 {[%emt 0:00:16] Black must now prevent Kg2.} Re6 $2 {[%emt 0:02:58] [#]} (37... Rd7) 38. Kg2 $1 {[%emt 0:05:07]} Rd6 {[%emt 0:00:40]} 39. Bxe5 {[%emt 0:00:14][%csl Ge5,Gg3][%cal Rf8f4]} Rd2+ {[%emt 0:00:09]} 40. Rf2 {[%emt 0:00:06]} Rxf2+ {[%emt 0:00:54]} 41. Kxf2 {[%emt 0:30:02]} b5 {[%emt 0:32:35]} 42. cxb5 {[%emt 0:00:10]} cxb5 {[%emt 0:00:39]} 43. Bd4 {[%emt 0:00:15]} g5 {[%emt 0:00:34]} 44. hxg5 {[%emt 0:00:10]} Kxg5 {[%emt 0:00:07]} 45. Kf3 {[%emt 0:00:25] Weighted Error Value: White=0.13 (very precise) /Black=0.64} 1-0